Cogmind - Beta 15 @@@ ROGUE MODE // 2025.05.13 @ 11:18:30 Player: GiggleBox Result: Destroyed by Y-45 Defender with Heavy Assault Rifle Performance ------------- Evolutions (0) 0 Regions Visited (2) 400 Robots Destroyed (16) 80 Value Destroyed (298) 298 Prototype IDs (2) 40 Alien Tech Used (0) 0 Bonus (-10) -10 TOTAL SCORE: 808 Bonus ------- Friendly Fire -10 Cogmind --------- Core Integrity 0/250 Matter 202/300 Energy 60/100 System Corruption 2% Temperature Cool (0) Movement Rolling (120) Ox1 Location -10/Subcaves Parts ------- > --- POWER (1) -------- (None) > --- PROPULSION (2) --- Subdweller Monowheel > --- UTILITY (2) ------ Large Storage Unit Seismic Detector > --- WEAPON (2) ------- Rocket Launcher > --- INVENTORY (15) --- Ion Engine Light Ion Engine Subdweller Power Source Cooling System Small Storage Unit Subdweller Optics Hardened Light Armor Plating Small Laser Light Assault Rifle Rocket Launcher Subdweller Shrapnel Launcher Scrap Shield Fragment (46) Peak State ------------ > --- POWER ------------ Ion Engine > --- PROPULSION ------- Aluminum Leg Subdweller Monowheel > --- UTILITY ---------- Large Storage Unit Seismic Detector > --- WEAPON ----------- Barrage Gun Rocket Launcher > --- INVENTORY -------- Ion Engine Light Ion Engine Cooling System Small Storage Unit Hardened Light Armor Plating Tractor Beam EM Pulse Gun Small Laser Light Assault Rifle Rocket Launcher Rocket Launcher [Rating: 12] Favorites ----------- Power Ion Engine Engine Ion Engine Propulsion Aluminum Leg Leg Aluminum Leg Wheel Subdweller Monowheel Utility Seismic Detector Device Seismic Detector Storage Large Storage Unit Weapon Small Laser Energy Gun Small Laser Ballistic Gun Barrage Gun Launcher Rocket Launcher Build | -11 -10 -10 ------- Run | Yrd Mat Sub Slots Evolved . | . . . Power . | . . . Propulsion . | . . . Utility . | . . . Weapon . | . . . Parts Attached 17 | 8 4 5 Power 2 | 1 1 . Engine 2 | 1 1 . Core . | . . . Reactor . | . . . Propulsion 3 | 2 . 1 Treads . | . . . Leg 2 | 2 . . Wheel 1 | . . 1 Hover . | . . . Flight . | . . . Utility 3 | 2 1 . Device 1 | 1 . . Storage 2 | 1 1 . Processor . | . . . Hackware . | . . . Protection . | . . . Artifact . | . . . Weapon 9 | 3 2 4 Energy Gun 3 | 2 . 1 Energy Cannon . | . . . Ballistic Gun 2 | 1 . 1 Ballistic Cannon . | . . . Launcher 4 | . 2 2 Special Weapon . | . . . Impact Weapon . | . . . Slashing Weapon . | . . . Piercing Weapon . | . . . Special Melee Weapon . | . . . Unidentified Prototypes . | . . . Parts Lost 7 | . . 7 Power 1 | . . 1 Propulsion 2 | . . 2 Utility . | . . . Weapon 4 | . . 4 Highest Loss Streak 3 | . . 3 To Critical Strikes . | . . . Average Backups 8 | 1 6 12 Power 1 | . 1 2 Propulsion . | . . . Utility 2 | . 1 4 Weapon 3 | . 2 5 Tool/Special . | . . . Unused Backups 9 | . 1 8 Power 3 | . . 3 Propulsion . | . . . Utility 4 | . . 4 Weapon 2 | . 1 1 Tool/Special . | . . . Average Slot Usage (%) 95 | . 99 89 Engine 12 | . 14 9 Leg 22 | . 27 14 Wheel 3 | . . 7 Device 14 | . 14 14 Storage 14 | . 14 14 Energy Gun 14 | . 14 15 Ballistic Gun 3 | . 1 6 Launcher 9 | . 11 6 Peak Build Rating 12 | 7 9 12 Average Rating 8 | 5 7 9 On Entrance 5 | . 7 8 Naked Turns . | . . . Heaviest Build 33 | 13 32 33 Greatest Support 20 | 20 20 20 Greatest Overweight (x) 2 | . 1 2 Average Overweight (x) . | . . 1 Largest Inventory Capacity 15 | 8 15 15 Average Capacity 14 | 7 14 15 Most Carried 15 | 2 11 15 Average Carried 8 | 1 6 12 Final Capacity 15 | 8 15 15 Final Carried 12 | 2 11 12 Class Distribution -------------------- 100% | Mutant Dominant Class ---------------- Mutant | -10/Materials Mutant | -10/Subcaves Resources | -11 -10 -10 ----------- Run | Yrd Mat Sub Matter Collected 616 | 285 107 224 Remotely . | . . . Salvage Created 390 | 101 223 66 Parts 28 | 4 15 9 Haulers Intercepted 1 | . 1 . Recyclers Shooed 1 | . 1 . Parts Field Recycled . | . . . Retrieved Matter . | . . . Parts Self-Destructed 1 | . . 1 Prevented . | . . . Kills | -11 -10 -10 ------- Run | Yrd Mat Sub Combat Hostiles Destroyed 11 | . 8 3 Guns 1 | . . 1 AOE 10 | . 8 2 Classes Destroyed 7 | 2 4 1 Tunneler 1 | 1 . . Hauler 1 | . 1 . Recycler 2 | 1 1 . Watcher 1 | . 1 . Swarmer 6 | . 6 . Grunt 2 | . 2 . Subdweller 3 | . . 3 Best Kill Streak 5 | 2 5 2 Combat Bots Only 3 | . 3 2 Max Kills in Single Turn 2 | 1 2 1 Gunslinging . | . . . Exploded 2 | . 2 1 Melee . | . . . Uniques/NPCs Destroyed . | . . . Combat | -11 -10 -10 -------- Run | Yrd Mat Sub Hostile Shots Fired 53 | . 23 30 Missed 18 | . 7 11 Hits 35 | . 16 19 Projectile 35 | . 16 19 AOE 3 | . . 3 Damage Taken 923 | . 236 687 Core 250 | . 51 199 Absorbed by Shields . | . . . Core Remaining (%) 100 | 100 . . Volleys Fired 37 | 5 13 19 Largest 2 | 2 2 2 Hottest 73 | 60 60 73 Shots Fired 56 | 10 16 30 Gun 30 | 10 5 15 Cannon . | . . . Launcher 26 | . 11 15 Special . | . . . Kinetic 18 | 5 2 11 Thermal 9 | 5 3 1 Explosive 26 | . 11 15 Electromagnetic 3 | . . 3 Robot Hit Streak 8 | 4 3 8 Robot Miss Streak 3 | 1 3 2 Penetration Max . | . . . Secondary Targets . | . . . Shots Hit Robots 34 | 7 4 23 Core Hits 26 | 4 13 9 Critical Kills 1 | . 1 . Critical Parts Destroyed . | . . . Critical Strikes 1 | . 1 . Destroy 1 | . 1 . Melee Attacks . | . . . Impact . | . . . Slashing . | . . . Piercing . | . . . Sneak Attacks . | . . . Combat Hostiles . | . . . Follow-up Attacks . | . . . Damage Inflicted 1368 | 67 635 666 Guns 244 | 67 17 160 Cannons . | . . . Explosions 1107 | . 601 506 Melee . | . . . Ramming 17 | . 17 . Kinetic 145 | 22 6 117 Thermal 66 | 45 11 10 Explosive 1107 | . 601 506 Electromagnetic 33 | . . 33 Impact . | . . . Slashing . | . . . Piercing . | . . . Highest Corruption 2 | . 2 2 Average Corruption 2 | . 2 2 Corruption Purged . | . . . Corruption Blocked . | . . . Effects 13 | . 2 11 Message Errors 3 | . . 3 Matter Fused 3 | . 1 2 Heat Flow Errors 1 | . . 1 Energy Discharges 2 | . . 2 Data Loss (minor) 2 | . . 2 Misfires 2 | . 1 1 Overload Shots . | . . . Overflow Damage 41 | . . 41 Projectiles . | . . . Explosions 41 | . . 41 Melee . | . . . Knockbacks . | . . . Impact . | . . . Kinetic . | . . . Secondary . | . . . Self-Inflicted Damage 237 | . 79 158 Shots 7 | . 2 5 Rammed . | . . . Targets Rammed 3 | . 3 . Kicked 3 | . 3 . Crushed . | . . . Highest Temperature 188 | 40 20 188 Average Temperature 33 | 16 11 108 Received Heat Transfer 99 | . 36 63 Siege Activations . | . . . Martial Activations . | . . . Shielding Activations . | . . . Robots Disrupted . | . . . Combat Hostiles . | . . . Robots Corrupted . | . . . Combat Hostiles . | . . . Parts Fried . | . . . Impact Corruptions . | . . . Robots Melted . | . . . Combat Hostiles . | . . . Parts Melted 1 | . . 1 Heat Transferred 150 | 100 25 25 Parts Sabotaged . | . . . Parts Stolen . | . . . Parts Stripped . | . . . Power Chain Reactions . | . . . Alert | -11 -10 -10 ------- Run | Yrd Mat Sub Maximum Alert Level . | . . . Low Security (%) 100 | 100 100 . Level 1 . | . . . Level 2 . | . . . Level 3 . | . . . Level 4 . | . . . Level 5 . | . . . High Security . | . . . Max Security . | . . . Peak Influence 112 | 5 112 . Initial . | . . . Average 34 | 1 37 . Influence Increases 330 | 10 320 . Destroy 0b10 Robot/C 160 | . 160 . Destroy 0b10 Robot/NC 25 | 10 15 . Destroy Leader 34 | . 34 . Successful Hack 36 | . 36 . Destroy Structure 60 | . 60 . Lose Combat Pursuer 15 | . 15 . Influence Decreases 330 | 10 315 5 Entered New Map 3 | . . 3 Time Decay 327 | 10 315 2 Squads Dispatched 1 | . 1 . Investigation 1 | . 1 . Extermination . | . . . Reinforcement . | . . . Assault . | . . . Garrison . | . . . Intercept . | . . . Searches Triggered . | . . . Construction Impeded . | . . . Haulers Reinforced . | . . . Active Scanning Responses . | . . . Cargo Convoy Interrupts . | . . . Stealth | -11 -10 -10 --------- Run | Yrd Mat Sub Distress Signals 1 | . 1 . Communications Jammed . | . . . Distress Signals . | . . . Times Spotted 15 | . 11 4 Peak Tracking Total 3 | . 3 2 Tactical Retreats 1 | . 1 . Traps | -11 -10 -10 ------- Run | Yrd Mat Sub Traps Triggered 3 | . 2 1 Indirectly . | . . . Trap Hack Attempts . | . . . Triggered . | . . . Disarmed . | . . . Reprogrammed . | . . . Reused . | . . . Traps Extracted . | . . . Installed . | . . . Triggered . | . . . Machines | -11 -10 -10 ---------- Run | Yrd Mat Sub Machines Disabled 1 | . 1 . Max in Single Turn 1 | . 1 . Machines Repaired . | . . . Machines Dismantled . | . . . Machines Sabotaged . | . . . Overloaded Fab Kills . | . . . Hacking | -11 -10 -10 --------- Run | Yrd Mat Sub Machines Accessed 6 | . 6 . Terminals 6 | . 6 . Fabricators . | . . . Repair Stations . | . . . Recycling Units . | . . . Scanalyzers . | . . . Garrison Access . | . . . Total Hacks 25 | . 25 . Successful 17 | . 17 . Failed 7 | . 7 . Catastrophic . | . . . Database Lockouts 1 | . 1 . Manual 16 | . 16 . Terminals 25 | . 25 . Fabricators . | . . . Repair Stations . | . . . Recycling Units . | . . . Scanalyzers . | . . . Garrison Access . | . . . Terminal Hacks 8 | . 8 . Robot Analysis 2 | . 2 . Prototype ID Bank 1 | . 1 . Branch Access Points 1 | . 1 . Emergency Access Points 1 | . 1 . Terminal Index 1 | . 1 . Alert Level 1 | . 1 . Locate Traps 1 | . 1 . Fabricator Hacks . | . . . Repair Station Hacks . | . . . Recycling Unit Hacks . | . . . Scanalyzer . | . . . Garrison Access Hacks . | . . . Unauthorized Hacks 9 | . 9 . Terminals 9 | . 9 . Botnet 3 | . 3 . Operators 1 | . 1 . Skim 5 | . 5 . Fabricators . | . . . Repair Stations . | . . . Recycling Units . | . . . Scanalyzers . | . . . Garrison Access . | . . . Data Cores Recovered . | . . . Used . | . . . Hacking Detections 4 | . 4 . Full Trace Events . | . . . Feedback Events . | . . . Feedback Blocked . | . . . Robot Schematics Acquired . | . . . Robots Built . | . . . Authchips . | . . . Time . | . . . Total Robot Build Rating . | . . . Part Schematics Acquired . | . . . Parts Built . | . . . Authchips . | . . . Time . | . . . Total Part Build Rating . | . . . Parts Repaired . | . . . Time . | . . . Parts Recycled . | . . . Recycled Matter . | . . . Retrieved Matter . | . . . Retrieved Components . | . . . Parts Scanalyzed . | . . . Part Schematics Acquired . | . . . Parts Damaged . | . . . Bothacking | -11 -10 -10 ------------ Run | Yrd Mat Sub Used RIF Installer . | . . . Robots Hacked . | . . . Non-combat . | . . . Combat . | . . . Robot Hacks Applied . | . . . Relay Couplers Released . | . . . Fabnet Peak Effective % . | . . . Robots Rewired . | . . . Allies Hacked . | . . . Hacks Repelled . | . . . Allies | -11 -10 -10 -------- Run | Yrd Mat Sub Total Allies . | . . . Largest Group . | . . . Highest-Rated Group . | . . . Highest-Rated Ally . | . . . Total Orders . | . . . Ally Attacks . | . . . Total Damage . | . . . Kills . | . . . Allies Corrupted . | . . . Allies Melted . | . . . Intel | -11 -10 -10 ------- Run | Yrd Mat Sub Active Infowar (turns) 1830 | 33 1027 770 Seismic 1830 | 33 1027 770 Robot Analysis Total 2 | . 2 . Derelict Logs Recovered . | . . . Drone Launches . | . . . Drone Recoveries . | . . . Exploration | -11 -10 -10 ------------- Run | Yrd Mat Sub Turns Passed 1896 | 99 1027 770 Spaces Moved 1068 | 61 532 475 Core 4 | 4 . . Treads . | . . . Legs 760 | 57 532 171 Wheels 304 | . . 304 Hover . | . . . Flight . | . . . Fastest Speed 50 | 50 120 120 Average Speed 163 | 115 182 148 Slowest Speed 260 | 120 190 260 Overloaded Moves . | . . . Propulsion Burnouts . | . . . Robots Hopped . | . . . Potential Cave-ins . | . . . Cave-ins Triggered . | . . . Exploration Rate (%) 41 | 5 91 29 Regions Visited 2 Branch Regions 1 Pre-discovered Areas 1 | . 1 . Known Exits Taken 1 | . 1 . Unknown Exits Taken 1 | 1 . . Scrap Searched . | . . . Spaces Dug . | . . . Terrain Destroyed 177 | . 70 107 Melee . | . . . Projectile . | . . . AOE 177 | . 70 107 Terrain Rammed . | . . . Walls Destroyed . | . . . Machines Disabled . | . . . Actions | -11 -10 -10 --------- Run | Yrd Mat Sub Total 1154 | 76 571 507 Wait 6 | 1 5 . Move 1066 | 60 531 475 Hop . | . . . Pick Up 17 | 2 9 6 Fast Attach 9 | 7 1 1 Attach 3 | . . 3 Detach . | . . . Swap 8 | 1 6 1 Drop 5 | . 3 2 Fire 37 | 5 13 19 Melee . | . . . Ram . | . . . Kick 3 | . 3 . Crush . | . . . Escape Stasis . | . . . Rewire . | . . . Trap . | . . . Miscellaneous . | . . . Route ------- -11/Scrapyard -10/Materials (discovered 5 exits: *Mat x3 / *Min / *Sub) -10/Subcaves (discovered 3 exits: *Mat x2 / Rec) History --------- Turn | Location | Event 35 | -11/Scrapyard | Discovered new exit (range 15) 100 | -11/Scrapyard | Entered Materials 318 | -10/Materials | Build established: Mutant 447 | -10/Materials | Discovered new exit (range 8) 527 | -10/Materials | Identified exit to Mines 543 | -10/Materials | Discovered new exit (range 15) 684 | -10/Materials | Learned location of 2 exits from Subcaves 729 | -10/Materials | Discovered new exit (range 5) 742 | -10/Materials | Identified exit to Materials 805 | -10/Materials | Central database locked down 830 | -10/Materials | Identified exit to Subcaves 880 | -10/Materials | Learned location of 2 exits from Materials 947 | -10/Materials | Learned location of 1 exit from Storage 1127 | -10/Materials | Entered Subcaves 1128 | -10/Subcaves | Approached by a straggling Scientist 1128 | -10/Subcaves | Identified exit to Materials 1128 | -10/Subcaves | Identified exit to Recycling 1252 | -10/Subcaves | Shifting Twisted Machinery released Sub. Monowheel 1259 | -10/Subcaves | Shifting Twisted Machinery released Barrage Gun 1646 | -10/Subcaves | Core integrity fell below 50% 1877 | -10/Subcaves | Core integrity fell below 20% 1897 | -10/Subcaves | Destroyed by Y-45 Defender with Heavy Assault Rifle Last Messages --------------- 01690_ Subatomizers dissect the Disposable Heat Sink. 01704_ System corrupted: Matter fused (-10). 01705_ Acquired 36 matter. 01767_ DPW 2GXHWG/B RYFJ2ROCKI|FWY CN>FU V HB 01774_ Subatomizers dissect the Sub. Monowheel. 01785_ Dropped Lgt. Ion Engine. 01786_ System corrupted: Energy discharge (-22). 01786_ Dropped Tractor Beam. 01787_ Acquired Lgt. Ion Engine. 01789_ Subatomizers dissect the Sub. Monowheel. 01789_ Acquired 38 matter. 01877_ The unstable cave ceiling collapses. 01882_ Barrage Gun destroyed. 01882_ Destroyed Barrage Gun. 01883_ The unstable cave ceiling collapses. 01885_ Destroyed Heat Sink. 01888_ Rocket Launcher destroyed. 01891_ 5X,QIO:BCQJXCISGRADE>J/NGCCP= NWO 01892_ The unstable cave ceiling collapses. 01894_ EM Pulse Gun destroyed. Map ----- +----------------------------------------------------+ | ?????????????????????????????????????????????????? | | ?????????????????????????????????????????????????? | | ?????????????????????????????????????????????????? | | ?????????????????????????????????????????????????? | | ?????????????????????????????????????????????????? | | ?????????????????????????????????????????????????? | | ?????????????????????????????????????????????????? | | ?????????????????????????????????????????????????? | | ?????????????????????????????????????????????????? | | ?????????????????????????????????????????????????? | | ?????????????????????????????????????????????????? | | ?????????????????????????????????????????????????? | | ?????????????????????????????????????????????????? | | ?????????????????????????????????????????????????? | | ??????????????##?????????????????????????????????? | | ?????????????? ????????????????? ????????????? | | ????????????? ??????????????? #???????????? | | ????????????? ????????????? ???????????? | | ???????????? ???????????? ??????????? | | ???????????? ??##??##?? ??????????# | | ???????????? Y ###### ### ??????????# | | ???????????# # ????????????# | | ?????????????? ????????????# | | ????????????????? ??? ?????????#### | | ???????????????????## #?????# #????????## | | ???????????????????# @ #????## #??????## | | ??????????????????# #????# ##????# | | ??????????????????### ### #????# ###??# | | ???????????????????#????# ##??## #### | | ????????????????????????# #?# " | | ???????????????????????## #??????## # | | ???????????????????????# ##??????## # | | ???????????????????????# # #???????# | | ???????????????????????# ####????# | | ???????????????????????# ###??## | | ???????????????????????# #??# | | ???????????????????????# #??## " | | ???????????????????????# ## #??# " | | ???????????????????????## ###### #### ## ## | | ????????????????????????###???## ## ### ### | | ?????????????????????????????## ##?#### | | ?????????????????????????????# ##?????# | | ????????????????????????????## ########??????## | | ???????????????????????????## #?????????????## | | ??????????????????????????## #?????????????# | | ?????????????????????????## ##?????????????## | | ????????????????????????## #???????????????## | | ????????????????????????# #????????????????? | | ????????????????????????#### #????????????????? | | ???????????????????????????## #????????????????? | +----------------------------------------------------+ Best States ------------- Heat Dissipation 25 Energy Generation 10 Energy Capacity 250 Matter Stores 300 Matter Capacity 300 Sight Range 16 Terrain Scan Density 10 Evasion (%) 55 Item Schematics ----------------- None Robot Schematics ------------------ None Fabricated ------------ Nothing Repaired ---------- Nothing Alien Tech Used ----------------- None Achievements -------------- None Challenges ------------ None Game ------ Seed ThiefIntegratedActivator Manual? 0 Play Time 00:14:50 Cumulative 88.5 hours Start 2025.05.13 @ 10:40:03 End 2025.05.13 @ 11:18:30 Sessions 1 Manual Loads 0 Difficulty Rogue Special Mode None Game No. 95 Rogue 95 Adventurer 0 Explorer 0 Win Type - Total 1 Types 1/0/0/0/0/0/0/0/0/0 Lore% 48 Gallery% 50 Achievement% 44 Wizard Run 0 Options --------- Layout 0 ASCII 0 Keyboard 1 Movement Numpad Keybinds 0 Fullscreen 1 Font 24/Terminus Map View 76x50 Zoom Use 0% Tactical HUD 1 Map Filters NONE Filters NONE Steam 1 RUN: fa5828dd-e8d3-4b87-951b-64f0732168ea